bitfinex-derivatives/quotes_ETHF0:USTF0_20250624
["timestamp","ask_amount","ask_price","bid_price","bid_amount"]
[1750734995608,0.83198,2402.4,2402.0,5.43468]
[1750734995910,2.7371,2402.7,2402.3,3.2078]
[1750734995911,0.83193,2402.5,2402.3,3.2078]
[1750734996108,0.83193,2402.5,2402.3,4.6301]
[1750734996306,0.83196,2402.4,2402.3,4.6301]
[1750734996902,0.83196,2402.4,2402.3,3.2078]
[1750734997107,7.133,2403.1,2402.3,15.81685209]
[1750734997309,0.83182,2402.8,2402.7,3.2078]
[1750734997912,0.83191,2402.6,2402.4,5.2967]
[1750734998307,1.4029,2403.1,2402.4,5.2967]
[1750734998611,8.5359,2403.1,2402.7,3.2078]
[1750734999202,0.83174,2403.1,2402.7,4.03964]
[1750734999403,2.22526,2403.3,2403.0,3.2078]
[1750734999613,0.6725,2403.3,2403.0,4.03954]
[1750735000003,0.6725,2403.3,2403.1,0.83171]
[1750735000310,0.6725,2403.3,2403.0,3.2078]
[1750735000311,0.83159,2403.5,2403.2,0.83168]
[1750735000620,0.707,2403.6,2403.3,0.83164]
[1750735000621,1.53856,2403.6,2403.3,0.83164]
[1750735000907,1.54613,2403.7,2403.4,0.83161]
[1750735001112,1.54613,2403.7,2403.4,2.26461]
[1750735001310,1.54613,2403.7,2403.4,2.92091]
[1750735001512,0.83154,2403.6,2403.4,2.0893]
[1750735001810,1.54613,2403.7,2403.4,2.0893]
[1750735002011,1.54613,2403.7,2403.4,2.92089]
[1750735002219,0.83149,2403.8,2403.5,0.83157]
[1750735002514,0.83152,2403.7,2403.4,2.92089]
[1750735002702,0.83148,2403.8,2403.5,0.83155]
[1750735002906,12.4461,2404.0,2403.5,0.83155]
[1750735003107,0.83148,2403.8,2403.5,0.83155]
[1750735003410,0.83146,2403.9,2403.5,2.26455]
[1750735003602,0.83153,2403.7,2403.5,1.433]
[1750735003806,0.83154,2403.6,2403.4,0.6563]
[1750735004207,0.83158,2403.5,2403.4,0.6563]
[1750735004407,5.2452,2404.0,2403.4,0.6563]
[1750735004613,0.83158,2403.5,2403.4,0.6563]
[1750735004813,0.83161,2403.4,2403.3,3.2078]
[1750735006106,2.14891,2403.4,2403.3,3.2078]
[1750735006304,2.14891,2403.4,2403.0,7.133]
[1750735006305,0.8317,2403.2,2402.9,4.74586]
[1750735006621,1.3173,2403.4,2402.9,11.0471]
[1750735006816,0.7076,2403.5,2402.9,11.87886]
[1750735007308,0.0637515,2403.1,2402.9,11.0471]
[1750735007619,0.0637515,2403.1,2402.9,11.87886]
[1750735008521,0.0637515,2403.1,2403.0,0.83175]
[1750735009017,0.8954715,2403.1,2402.9,11.0471]
[1750735009217,0.8954715,2403.1,2402.9,13.22517]
[1750735009720,0.0637515,2403.1,2402.9,18.70122209]
[1750735010018,0.8954715,2403.1,2402.9,18.70122209]
[1750735010219,0.83172,2403.1,2402.9,13.22517]
[1750735010418,0.83175,2403.0,2402.9,12.3934]
[1750735010618,0.83175,2403.0,2402.9,5.2604]
[1750735010814,0.83175,2403.0,2402.9,3.2078]
[1750735024622,0.83167,2403.3,2403.0,0.83174]
[1750735024821,0.83163,2403.4,2403.2,4.66513347]
[1750735025017,0.8316,2403.5,2403.3,1.3642]
[1750735025224,0.83161,2403.4,2403.3,1.3642]
[1750735026223,0.83168,2403.2,2403.1,0.721]
[1750735031629,0.83168,2403.2,2403.1,2.1457]
[1750735033237,0.83171,2403.1,2403.0,0.688]
[1750735033430,5.28672,2403.6,2403.0,0.688]
[1750735033431,5.28672,2403.6,2403.0,5.35313347]
[1750735033630,0.83169,2403.2,2403.1,1.4247]
[1750735033830,3.2078,2403.6,2403.1,1.4247]
[1750735034033,0.83166,2403.3,2403.2,4.03948]
[1750735034235,0.7227,2403.8,2403.4,0.8316]
[1750735034433,0.83151,2403.7,2403.6,3.2078]
[1750735035134,0.83154,2403.6,2403.5,2.1046]
[1750735035333,0.83154,2403.6,2403.5,0.681]
[1750735036736,0.83161,2403.4,2403.3,14.88493347]
[1750735037338,0.83161,2403.4,2403.3,7.87293347]
[1750735037539,0.83161,2403.4,2403.3,14.88493347]
[1750735038039,0.83161,2403.4,2403.3,10.2198]
[1750735038646,0.83161,2403.4,2403.2,2.35962341]
[1750735038647,0.83165,2403.3,2403.2,0.7055]
[1750735039038,0.83168,2403.2,2403.1,8.4356]
[1750735039339,0.83168,2403.2,2403.1,7.012]
[1750735041542,0.83171,2403.1,2403.0,3.8958]
[1750735041838,0.83171,2403.1,2403.0,12.313]
[1750735043932,2.73868,2403.3,2402.8,1.65412341]
[1750735044151,0.83189,2402.6,2402.5,0.6955]
[1750735046033,0.83192,2402.5,2402.4,3.2078]
[1750735047936,0.83192,2402.5,2402.4,4.5754]
[1750735048133,0.6825,2402.8,2402.4,4.5754]
[1750735048333,0.83184,2402.8,2402.6,4.66513347]
[1750735048538,0.83182,2402.8,2402.7,5.2461]
[1750735048739,0.83182,2402.8,2402.7,5.9448]
[1750735049548,0.83185,2402.7,2402.6,7.013]
[1750735051339,2.07942,2403.0,2402.4,5.9358]
[1750735051340,0.83192,2402.5,2402.4,5.9358]
[1750735051534,0.83192,2402.5,2402.4,12.9488]
[1750735053549,0.83192,2402.5,2402.4,11.5902]
[1750735054447,0.83192,2402.5,2402.4,11.5212]
[1750735054644,0.6561,2403.1,2402.4,11.5212]
[1750735054949,0.83182,2402.8,2402.7,3.2078]
[1750735064862,4.77914,2403.1,2402.7,3.2078]
[1750735064863,0.83181,2402.9,2402.7,3.2078]
[1750735065065,0.83182,2402.8,2402.7,3.2078]
[1750735065869,0.0637515,2403.0,2402.7,3.2078]
[1750735066167,5.68795132,2403.5,2402.7,3.2078]
[1750735066469,0.8317,2403.2,2403.0,4.03953]
[1750735066672,0.8317,2403.2,2403.1,2.0742]
[1750735067169,1.50873,2403.4,2403.1,2.0742]
[1750735067469,0.7229,2403.5,2403.1,2.0742]
[1750735067470,0.83168,2403.2,2403.1,2.0742]
[1750735068276,0.83153,2403.7,2403.4,0.8316]
[1750735068567,0.6771,2404.2,2403.6,3.2078]
[1750735068770,0.6771,2404.2,2403.9,3.2078]
[1750735069166,0.7229,2404.5,2403.9,3.2078]
[1750735069374,0.7229,2404.5,2404.2,3.2078]
[1750735069565,0.83124,2404.5,2404.2,4.03912]
[1750735069766,0.727,2404.7,2404.3,0.83128]
[1750735069969,0.83126,2404.4,2404.3,2.1401]
[1750735070266,1.55819,2404.7,2404.3,2.97138]
[1750735070473,0.83121,2404.6,2404.3,2.97138]
[1750735070669,0.83123,2404.5,2404.3,2.1401]
[1750735071271,0.83119,2404.7,2404.3,2.97138]
[1750735071473,0.83119,2404.7,2404.3,7.63651347]
[1750735071671,3.2078,2405.0,2404.5,3.2078]
[1750735071875,0.727,2405.2,2404.8,3.2078]
[1750735072076,0.83109,2404.9,2404.8,3.2078]
[1750735072871,0.83116,2404.7,2404.6,0.7208]
[1750735073082,0.83115,2404.8,2404.6,0.7208]
[1750735073370,0.83107,2405.0,2404.6,6.21711347]
[1750735073561,0.83107,2405.0,2404.8,3.2078]
[1750735073765,2.0681,2405.2,2404.8,3.2078]
[1750735073766,0.83109,2404.9,2404.8,3.2078]
[1750735075472,0.83109,2404.9,2404.6,0.7208]
[1750735075473,0.83116,2404.7,2404.6,7.6628]
[1750735075672,0.83112,2404.9,2404.6,7.6628]
[1750735075973,0.83112,2404.9,2404.8,3.2078]
[1750735076579,2.0681,2405.2,2404.8,3.2078]
[1750735076877,0.727,2405.2,2404.8,3.2078]
[1750735077074,0.727,2405.2,2404.8,4.5936]
[1750735077276,0.83108,2405.0,2404.8,4.5936]
[1750735077478,0.83109,2404.9,2404.8,4.5936]
[1750735077679,0.83108,2405.0,2404.8,4.5936]
[1750735077883,0.83109,2404.9,2404.8,4.5936]
[1750735078274,0.83108,2405.0,2404.8,4.5936]
[1750735078472,0.83109,2404.9,2404.8,4.5936]
[1750735078770,0.83109,2404.9,2404.8,3.2078]
[1750735083271,0.83113,2404.8,2404.6,7.6608]
[1750735083681,0.83116,2404.7,2404.6,7.6608]
[1750735083979,0.83116,2404.7,2404.6,0.7208]
[1750735084177,0.8312,2404.6,2404.5,3.2078]
[1750735084482,0.8313,2404.3,2404.2,3.2078]
[1750735084782,0.8313,2404.3,2404.2,10.1238]
[1750735085680,0.8313,2404.3,2404.2,3.2078]
[1750735090181,1.4342,2404.7,2404.2,4.03911]
[1750735090482,2.078,2404.6,2404.2,3.2078]
[1750735090678,0.83129,2404.4,2404.2,4.03912]
[1750735091284,0.83129,2404.4,2404.2,10.95512]
[1750735091680,0.8313,2404.3,2404.2,10.1238]
[1750735091986,0.83128,2404.4,2404.2,10.95513]
[1750735092280,1.4342,2404.7,2404.3,4.66513347]
[1750735092490,0.83127,2404.4,2404.3,7.45493347]
[1750735093082,0.83125,2404.5,2404.3,8.28623347]
[1750735093282,0.83125,2404.5,2404.3,7.45493347]
[1750735093785,0.83127,2404.4,2404.3,7.45493347]
[1750735094288,0.83125,2404.5,2404.3,8.28623347]
[1750735095491,0.83127,2404.4,2404.3,7.45493347]
[1750735095790,0.83125,2404.5,2404.3,8.28622347]
[1750735096091,0.83125,2404.5,2404.3,8.28623347]
[1750735096290,0.83125,2404.5,2404.4,2.46435893]
[1750735096592,0.8948615,2404.9,2404.7,0.83115]
[1750735096785,0.8948615,2404.9,2404.8,5.67215893]
[1750735096986,0.8948615,2404.9,2404.8,6.37145893]
[1750735098188,0.8948615,2404.9,2404.8,3.9071]
[1750735099197,0.0637515,2404.9,2404.8,9.39663496]
[1750735099391,0.7253,2405.4,2404.8,14.98520496]
[1750735099690,0.83094,2405.4,2405.1,8.69720496]
[1750735099993,0.83094,2405.4,2405.2,8.3347]
[1750735100189,4.5471,2405.7,2405.1,3.2078]
[1750735100398,0.83106,2405.0,2404.9,3.9009]
[1750735100591,0.83106,2405.0,2404.9,10.1228]
[1750735100790,3.2078,2405.3,2404.6,4.65840496]
[1750735100791,0.83116,2404.7,2404.6,3.2078]
[1750735100996,0.83116,2404.7,2404.6,10.1228]
[1750735101295,2.17042,2404.9,2404.6,10.954]
[1750735101492,0.0637515,2404.9,2404.6,16.18850496]
[1750735101692,0.0637515,2404.9,2404.8,0.83113]
[1750735101993,0.0637515,2404.9,2404.8,7.74613]
[1750735102997,0.0637515,2404.9,2404.8,6.915]
[1750735103399,0.8948415,2404.9,2404.8,1.4073]
[1750735103598,0.0637515,2404.9,2404.8,8.3223]
[1750735103896,0.0637515,2404.9,2404.8,9.15343]
[1750735104098,0.0637515,2404.9,2404.8,13.81183496]
[1750735105201,0.0637515,2404.9,2404.8,18.81183496]
[1750735105403,0.0637515,2404.9,2404.8,13.81183496]
[1750735106609,0.0637515,2404.9,2404.8,8.3213]
[1750735106797,0.8948415,2404.9,2404.8,2.0762]
[1750735107001,0.0637515,2404.9,2404.8,8.9902]
[1750735107208,0.83116,2404.7,2404.6,3.2078]
[1750735107509,0.83116,2404.7,2404.6,10.1218]
[1750735107897,0.0637515,2404.9,2404.6,10.1218]
[1750735108102,0.0637515,2404.9,2404.8,5.48953496]
[1750735108304,0.0637515,2404.9,2404.8,6.90933496]
[1750735108505,0.83098,2405.3,2405.0,0.83104]
[1750735108703,0.83098,2405.3,2405.1,12.251]
[1750735108900,1.51125,2405.4,2405.1,13.08201]
[1750735109209,0.83095,2405.4,2405.1,13.08201]
[1750735109505,0.6723,2405.6,2405.1,13.08201]
[1750735109506,0.83096,2405.3,2405.1,13.08201]
[1750735110105,0.83099,2405.2,2405.1,5.336]
[1750735110307,0.83094,2405.4,2405.1,16.90940496]
[1750735110609,0.6723,2405.6,2405.1,12.251]
[1750735110815,0.83099,2405.2,2405.1,3.9162]
[1750735111008,0.83099,2405.2,2405.1,3.2078]
[1750735111611,0.83102,2405.1,2405.0,6.915]
[1750735112501,0.831,2405.2,2405.0,8.282]
[1750735112706,1.3552,2405.5,2405.1,3.2078]
[1750735113012,0.83099,2405.2,2405.1,3.2078]
[1750735113218,0.83097,2405.3,2405.1,4.03882]
[1750735113505,0.6723,2405.6,2405.1,4.52]
[1750735113711,0.83099,2405.2,2405.1,4.52]
[1750735113906,0.83099,2405.2,2405.1,10.1218]
[1750735114415,0.83099,2405.2,2405.1,10.1188]
[1750735114915,0.83098,2405.3,2405.1,10.1188]
[1750735115109,0.83094,2405.4,2405.1,10.94981]
[1750735115307,0.83094,2405.4,2405.2,0.6997]
[1750735115614,0.6723,2405.6,2405.2,0.6997]
[1750735115615,0.83095,2405.3,2405.2,0.6997]
[1750735116006,0.6723,2405.6,2405.1,3.2078]
[1750735116007,0.83099,2405.2,2405.1,3.2078]
[1750735116207,3.2078,2405.7,2405.1,10.1188]
[1750735116510,4.03862,2405.7,2405.2,6.06830496]
[1750735116706,0.83085,2405.6,2405.4,0.8309]
[1750735116911,0.83085,2405.6,2405.5,6.911]
[1750735117717,4.5767,2406.0,2405.5,6.911]
[1750735117905,0.83084,2405.7,2405.6,6.911]
[1750735118710,1.4171,2405.9,2405.4,3.2078]
[1750735118911,1.52655,2405.6,2405.5,6.911]
[1750735119312,0.83089,2405.5,2405.4,3.2078]
[1750735119512,0.83089,2405.5,2405.4,10.1188]
[1750735120015,0.83089,2405.5,2405.4,3.2078]
[1750735120218,3.46803,2405.5,2405.1,3.2078]
[1750735120522,0.83099,2405.2,2405.1,3.2078]
[1750735121019,0.83099,2405.2,2405.1,10.1178]
[1750735121216,0.83099,2405.2,2405.1,3.2078]
[1750735121617,0.83099,2405.2,2405.1,10.1178]
[1750735122221,0.83099,2405.2,2405.1,12.58078325]
[1750735122612,0.721,2405.4,2405.1,12.58078325]
[1750735122613,0.83099,2405.3,2405.1,12.58078325]
[1750735122817,0.83099,2405.2,2405.1,12.58078325]
[1750735123019,0.83099,2405.2,2405.1,13.26468325]
[1750735123218,0.721,2405.4,2405.1,14.65948325]
[1750735123414,0.721,2405.4,2405.3,2.46298325]
[1750735123415,0.83094,2405.4,2405.3,2.46298325]
[1750735124316,0.83094,2405.4,2405.3,9.37298325]
[1750735124720,0.83094,2405.4,2405.3,2.46298325]
[1750735125408,0.83094,2405.4,2405.3,9.37298325]
[1750735127820,2.0108,2405.6,2405.1,5.67078325]
[1750735127821,0.83099,2405.2,2405.1,5.67078325]
[1750735128021,0.83099,2405.2,2405.1,12.58078325]
[1750735128220,0.83099,2405.2,2405.1,5.67078325]
[1750735128422,0.83099,2405.2,2405.1,12.58078325]
[1750735130023,0.83099,2405.2,2405.1,5.67078325]
[1750735130725,0.83099,2405.2,2405.1,12.58078325]
[1750735130929,0.83099,2405.2,2405.1,5.67078325]
[1750735131420,0.83099,2405.2,2405.1,3.2078]
[1750735131622,0.83099,2405.2,2405.1,10.1178]
[1750735132224,0.83099,2405.2,2405.1,12.58078325]
[1750735133826,0.83099,2405.2,2405.1,13.41180325]
[1750735134027,0.83097,2405.3,2405.1,13.41180325]
[1750735136124,0.83099,2405.2,2405.1,13.41180325]
[1750735136329,0.83099,2405.2,2405.1,14.11300325]
[1750735136532,0.83099,2405.2,2405.1,13.28198325]
[1750735138931,0.83099,2405.2,2405.1,12.58078325]
[1750735140740,0.83099,2405.2,2405.1,5.67078325]
[1750735142136,0.83099,2405.2,2405.1,12.58078325]
[1750735142332,0.83099,2405.2,2405.1,5.67078325]
[1750735142635,0.83099,2405.2,2405.1,12.58078325]
[1750735143842,0.0637515,2405.4,2405.1,12.58078325]
[1750735144043,0.83098,2405.3,2405.1,13.41179325]
[1750735144340,0.83099,2405.2,2405.1,12.58078325]
[1750735145040,0.83099,2405.2,2405.1,6.38408325]
[1750735145235,0.0637515,2405.2,2405.1,14.12110325]
[1750735145445,0.0637515,2405.2,2405.1,15.44960325]
[1750735145640,0.0637515,2405.2,2405.1,16.26664122]
[1750735145843,0.0637515,2405.2,2405.1,17.09766122]
[1750735146044,0.8947415,2405.2,2405.1,16.26664122]
[1750735146352,0.8947415,2405.2,2405.1,13.29008325]
[1750735146638,0.8947415,2405.2,2405.1,14.12110325]
[1750735146639,0.0637515,2405.2,2405.1,14.12110325]
[1750735146840,0.0637515,2405.2,2405.1,7.77418325]
[1750735147044,0.0637515,2405.2,2405.1,15.51120325]
[1750735147630,0.0637515,2405.2,2405.1,17.15926122]
[1750735148540,0.0637515,2405.2,2405.1,6.40017797]
[1750735148840,0.0637515,2405.2,2405.1,15.76916122]
[1750735149038,0.0637515,2405.2,2405.1,17.15926122]
[1750735149641,0.83088,2405.6,2405.1,19.68018325]
[1750735149941,0.83088,2405.6,2405.5,2.46298325]
[1750735150141,0.83088,2405.6,2405.5,9.36898325]
[1750735150343,0.83088,2405.6,2405.5,10.07568325]
[1750735150546,0.83088,2405.6,2405.5,3.16968325]
[1750735150736,0.83088,2405.6,2405.5,6.906]
[1750735151136,0.83089,2405.5,2405.4,5.67078325]
[1750735151339,0.83089,2405.5,2405.4,10.1128]
[1750735151736,0.83089,2405.5,2405.4,3.2078]
[1750735152243,5.83089,2405.5,2405.4,3.2078]
[1750735152445,0.83095,2405.3,2405.2,6.905]
[1750735153340,0.831,2405.2,2405.0,3.17788325]
[1750735153541,0.831,2405.2,2405.0,10.08288325]
[1750735153943,0.831,2405.2,2405.0,10.91393325]
[1750735154142,0.831,2405.2,2405.0,11.43068325]
[1750735154346,0.8947515,2405.2,2405.0,11.43068325]
[1750735154636,0.0637515,2405.2,2405.1,0.83102]
[1750735154853,0.0637515,2405.2,2405.1,3.83085974]
[1750735155144,0.0637515,2405.2,2405.1,10.73585974]
[1750735156043,0.0637515,2405.2,2405.1,1.65203974]
[1750735156242,0.8947715,2405.2,2405.1,6.905]
[1750735156944,0.83102,2405.1,2405.0,1.65203974]
[1750735157148,0.83106,2405.0,2404.9,3.2078]
[1750735157349,0.83116,2404.7,2404.6,3.2078]
[1750735157548,0.83127,2404.4,2404.3,11.76483974]
[1750735157751,0.83127,2404.4,2404.3,3.2078]
[1750735157948,5.83127,2404.4,2404.3,3.2078]
[1750735158558,0.83127,2404.4,2404.3,3.2078]
[1750735158749,0.83127,2404.4,2404.3,5.67078325]
[1750735159054,0.83127,2404.4,2404.3,3.2078]
[1750735159455,0.83134,2404.2,2404.0,5.67078325]
[1750735160351,0.83134,2404.2,2404.0,3.2078]
[1750735161255,0.83128,2404.4,2404.1,4.66134707]
[1750735161551,0.83128,2404.4,2404.1,5.49271707]
[1750735161740,0.83128,2404.4,2404.1,4.66134707]
[1750735161941,0.6576,2404.5,2404.0,3.2078]
[1750735162137,1.3435,2404.4,2404.0,10.1138]
[1750735162344,1.3435,2404.4,2404.0,3.2078]
[1750735162345,0.83137,2404.1,2404.0,3.2078]
[1750735162746,0.83136,2404.2,2404.0,3.2078]
[1750735162947,0.83137,2404.1,2403.9,0.6957]
[1750735163249,1.3435,2404.4,2403.9,1.52714]
[1750735163250,0.83136,2404.2,2403.9,1.52714]
[1750735163749,0.83133,2404.3,2404.0,4.03919]
[1750735163953,0.83134,2404.2,2404.0,3.2078]
[1750735164453,0.83137,2404.1,2404.0,3.2078]
[1750735166251,0.83136,2404.2,2404.0,3.2078]
[1750735167255,0.83137,2404.1,2404.0,3.2078]
[1750735168951,0.83135,2404.2,2404.0,4.0392]
[1750735169155,0.83135,2404.2,2404.0,5.4373]
[1750735169451,0.83137,2404.1,2404.0,4.6059]
[1750735171058,0.83137,2404.1,2404.0,3.2078]
[1750735171461,3.2078,2404.9,2404.0,8.2078]
[1750735171755,0.83123,2404.5,2404.4,3.2078]
[1750735171960,0.83123,2404.5,2404.4,10.1158]
[1750735172657,0.83123,2404.5,2404.4,3.2078]
[1750735172861,0.83127,2404.4,2404.3,6.908]
[1750735173053,0.83132,2404.3,2404.1,4.5651]
[1750735173253,0.83132,2404.3,2404.2,6.908]
[1750735173453,0.83132,2404.3,2404.1,4.5651]
[1750735173653,2.0086,2404.8,2404.1,4.5651]
[1750735173855,2.0086,2404.8,2404.2,6.908]
[1750735173856,0.83132,2404.3,2404.2,6.908]
[1750735174262,0.83129,2404.4,2404.2,6.908]
[1750735174464,0.83125,2404.5,2404.2,7.73933]
[1750735174960,0.83127,2404.4,2404.3,0.7059]
[1750735175261,0.83126,2404.5,2404.3,0.7059]
[1750735175657,0.8950115,2404.5,2404.3,0.7059]
[1750735175858,0.0637515,2404.5,2404.4,3.2078]
[1750735176157,0.8949815,2404.5,2404.4,3.2078]
[1750735176767,0.0637515,2404.5,2404.4,8.70041707]
[1750735176966,0.0637515,2404.5,2404.4,10.12901707]
[1750735177158,0.663,2405.0,2404.4,14.29774707]
[1750735177359,3.2078,2405.2,2404.7,3.2078]
[1750735177668,3.2078,2405.2,2404.8,2.8284]
[1750735177867,4.6246,2405.2,2404.8,2.8284]
[1750735178065,0.7209,2405.3,2404.8,2.8284]
[1750735178366,0.7209,2405.3,2404.9,0.83109]
[1750735178367,0.83101,2405.2,2404.9,0.83109]
[1750735178561,0.83101,2405.2,2404.9,1.4119]
[1750735179562,0.83103,2405.1,2404.9,1.4119]
[1750735180263,0.83109,2404.9,2404.8,1.4165]
[1750735180463,3.2078,2405.2,2404.5,6.02694707]
[1750735180763,0.83116,2404.7,2404.6,0.7257]
[1750735185562,0.8312,2404.6,2404.5,9.36523092]
[1750735186061,0.83123,2404.5,2404.4,3.2078]
[1750735186368,1.49723,2404.5,2404.4,3.2078]
[1750735186768,1.5609815,2404.5,2404.4,3.2078]
[1750735190278,0.0637515,2404.5,2404.4,11.50330092]
[1750735190481,0.0637515,2404.5,2404.4,6.50330092]
[1750735190775,0.0637515,2404.5,2404.4,7.10553092]
[1750735191179,0.0637515,2404.5,2404.4,14.00653092]
[1750735191476,0.0637515,2404.5,2404.4,14.83780092]
[1750735191771,0.0637515,2404.5,2404.4,14.00653092]
[1750735191979,0.0637515,2404.5,2404.4,14.83780092]
[1750735193876,0.0637515,2404.5,2404.4,19.00653092]
[1750735194074,0.83115,2404.8,2404.5,0.83123]
[1750735194270,0.83116,2404.7,2404.6,2.46423092]
[1750735195584,0.6965,2404.9,2404.4,14.00653092]
[1750735195784,0.83117,2404.7,2404.4,14.83776092]
[1750735196081,0.0637515,2404.5,2404.4,7.93676092]
[1750735196283,0.0637515,2404.5,2404.4,14.83776092]
[1750735196779,0.0637515,2404.5,2404.4,13.40430092]
[1750735196981,0.0637515,2404.5,2404.4,15.04696339]
[1750735197582,5.68476216,2405.4,2404.4,18.88373092]
[1750735197791,0.83102,2405.1,2405.0,3.2078]
[1750735197993,0.7114,2405.2,2405.0,3.2078]
[1750735198287,0.7114,2405.2,2405.0,4.03885]
[1750735198681,0.7114,2405.2,2405.0,4.03883]
[1750735200386,0.7114,2405.2,2405.1,0.83102]
[1750735200580,9.37796216,2405.6,2405.1,0.83102]
[1750735200581,2.47696216,2405.8,2405.1,2.46423092]
[1750735200783,0.6815,2405.7,2405.6,2.46423092]
[1750735200983,0.6815,2405.7,2405.5,5.67203092]
[1750735201183,0.6815,2405.7,2405.5,6.50291092]
[1750735201488,0.6815,2405.7,2405.5,5.67203092]
[1750735201781,1.51232,2405.7,2405.5,5.67203092]
[1750735202284,0.6815,2405.7,2405.5,5.67203092]
[1750735202787,0.6815,2405.7,2405.5,6.50292092]
[1750735203384,1.54503,2406.0,2405.6,0.83085]
[1750735203579,1.54503,2406.0,2405.8,2.46423092]
[1750735204787,0.7143,2406.0,2405.8,2.46423092]
[1750735204989,0.83059,2406.4,2406.1,0.83067]
[1750735205291,3.2078,2406.8,2406.3,2.46423092]
[1750735205486,3.2078,2406.8,2406.6,2.46423092]
[1750735205677,0.8304,2407.0,2406.6,9.38723092]
[1750735205881,3.2078,2407.2,2406.8,3.29465092]
[1750735206085,0.83021,2407.5,2407.1,2.46423092]
[1750735206285,0.83007,2407.9,2407.4,2.46423092]
[1750735206591,5.0,2408.1,2407.7,6.50214092]
[1750735206782,5.82999,2408.1,2407.9,2.46423092]
[1750735207178,5.0,2408.1,2407.8,6.923]
[1750735207384,0.83015,2407.7,2407.4,5.67203092]
[1750735207583,0.83013,2407.7,2407.5,6.921]
[1750735207784,5.3148,2408.0,2407.4,5.67203092]
[1750735207989,5.3148,2408.0,2407.5,6.921]
[1750735208188,0.8301,2407.8,2407.7,3.2078]
[1750735208499,0.83008,2407.9,2407.5,6.921]
[1750735208794,0.83008,2407.9,2407.5,8.2947]
[1750735209296,5.0,2408.1,2407.5,8.2947]
[1750735209792,5.0,2408.1,2407.6,4.64785761]
[1750735209987,5.0,2408.1,2408.0,3.2078]
[1750735210189,5.0,2408.1,2408.0,10.1288]
[1750735210499,0.83006,2407.9,2407.8,7.6193]
[1750735210691,0.83004,2408.0,2407.8,7.6193]
[1750735210993,0.83002,2408.0,2407.9,1.3677]
[1750735211199,5.0,2408.1,2407.7,51.0808]
[1750735211200,0.83009,2407.8,2407.7,51.0808]
[1750735211388,0.83009,2407.8,2407.7,3.2078]
[1750735211585,3.2078,2407.8,2407.3,7.6173]
[1750735211800,0.83023,2407.4,2407.3,7.6173]
[1750735212095,0.83023,2407.4,2407.3,6.919]
[1750735212889,0.83026,2407.3,2407.2,51.0698]
[1750735213094,0.83026,2407.3,2407.2,57.9888]
[1750735213890,0.83024,2407.4,2407.2,57.9888]
[1750735214091,0.83024,2407.4,2407.3,1.3731]
[1750735214294,0.83022,2407.5,2407.3,1.3731]
[1750735214497,0.83015,2407.7,2407.4,4.64785761]
[1750735214693,0.83015,2407.7,2407.5,4.5809]
[1750735214901,0.83015,2407.7,2407.6,6.918]
[1750735215101,0.83015,2407.7,2407.6,8.2911]
[1750735215695,0.83015,2407.7,2407.6,6.918]
[1750735216392,0.83015,2407.7,2407.6,11.918]
[1750735216698,0.83005,2408.0,2407.6,9.12125]
[1750735216905,0.83006,2407.9,2407.8,7.85565761]
[1750735219899,0.0637515,2408.0,2407.8,7.85565761]
[1750735219900,0.0637515,2408.0,2407.8,12.85565761]
[1750735220205,0.83006,2407.9,2407.8,6.917]
[1750735220405,0.8301,2407.8,2407.5,3.2078]
[1750735220605,0.8301,2407.8,2407.6,6.917]
[1750735220802,0.83016,2407.6,2407.5,4.614]
[1750735221003,0.0637515,2408.0,2407.9,0.83006]
[1750735221409,0.83006,2407.9,2407.8,3.2078]
[1750735221614,0.83008,2407.9,2407.7,6.917]
[1750735221813,0.83009,2407.8,2407.7,6.917]
[1750735222411,0.83006,2407.9,2407.7,6.917]
[1750735222710,0.0637515,2408.0,2407.7,6.917]
[1750735222711,0.83009,2407.8,2407.7,6.917]
[1750735222909,0.0637515,2408.0,2407.7,6.917]
[1750735223104,0.8937915,2408.0,2407.7,6.917]
[1750735223304,0.8937915,2408.0,2407.7,11.56485761]
[1750735223505,0.8937915,2408.0,2407.8,0.83009]
[1750735223810,0.0637515,2408.0,2407.7,4.64785761]
[1750735224009,0.8938015,2408.0,2407.7,4.64785761]
[1750735224207,0.0637515,2408.0,2407.8,0.83008]
[1750735224410,0.0637515,2408.0,2407.8,10.95388]
[1750735224710,0.8937915,2408.0,2407.8,10.1238]
[1750735224907,0.0637515,2408.0,2407.8,10.1238]
[1750735225104,0.8938115,2408.0,2407.8,10.1238]
[1750735225308,0.8938115,2408.0,2407.8,12.35319]
[1750735225309,0.0637515,2408.0,2407.8,12.35319]
[1750735225912,0.0637515,2408.0,2407.9,0.83006]
[1750735226207,0.0637515,2408.0,2407.8,11.5231]
[1750735226414,0.0637515,2408.0,2407.9,6.916]
[1750735226807,0.0637515,2408.0,2407.9,12.39391761]
[1750735227012,0.0637515,2408.0,2407.9,14.47261761]
[1750735227312,0.0637515,2408.0,2407.9,40.74061761]
[1750735227806,0.0637515,2408.0,2407.9,7.55661761]
[1750735228019,0.0637515,2408.0,2407.9,40.73461761]
[1750735229206,0.0637515,2408.0,2407.9,40.71761761]
[1750735229411,0.0637515,2408.0,2407.9,7.6371]
[1750735229812,0.0637515,2408.0,2407.9,8.46716]
[1750735230805,3.2715515,2408.0,2407.8,6.915]
[1750735231011,0.83006,2407.9,2407.8,6.915]
[1750735231215,2.19326,2407.9,2407.8,6.915]
[1750735231410,1.3632,2407.9,2407.6,6.915]
[1750735231612,1.3632,2407.9,2407.4,6.915]
[1750735231809,2.07524,2407.8,2407.2,3.2078]
[1750735232011,3.2078,2407.4,2406.8,3.2078]
[1750735232205,2.7557,2407.3,2406.8,3.2078]